[Event "Titled Tuesday Blitz July 11 Late 2023"]
[White "Haitin, Ilja"]
[Black "SicilianPanzer"]
[WhiteFideId "4501764"]
[WhiteElo "2413"]
[BlackElo "2248"]
[Result "0-1"]
[Round "5"]
[TimeControl "180+2"]
[Date "2023.07.11"]
[WhiteClock "0:00:03"]
[BlackClock "0:00:12"]
[Board "140"]

1. Nf3 {[%clk 0:03:00]}  Nf6 {[%clk 0:02:59]} 2. b3 {[%clk 0:03:00]}  g6 {[%clk 0:02:59]} 3. Bb2 {[%clk 0:03:01]}  Bg7 {[%clk 0:02:59]} 4. e3 {[%clk 0:03:02]}  O-O {[%clk 0:02:59]} 5. d4 {[%clk 0:03:03]}  d6 {[%clk 0:02:58]} 6. Be2 {[%clk 0:03:03]}  c6 {[%clk 0:02:56]} 7. O-O {[%clk 0:03:03]}  Re8 {[%clk 0:02:53]} 8. c4 {[%clk 0:03:03]}  Bf5 {[%clk 0:02:53]} 9. Nc3 {[%clk 0:03:03]}  a5 {[%clk 0:02:50]} 10. Rc1 {[%clk 0:02:57]}  Ne4 {[%clk 0:02:41]} 11. h3 {[%clk 0:02:54]}  Nxc3 {[%clk 0:02:37]} 12. Bxc3 {[%clk 0:02:55]}  a4 {[%clk 0:02:37]} 13. b4 {[%clk 0:02:54]}  Nd7 {[%clk 0:01:55]} 14. Nh4 {[%clk 0:02:51]}  Be4 {[%clk 0:01:54]} 15. f3 {[%clk 0:02:50]}  e5 {[%clk 0:01:26]} 16. fxe4 {[%clk 0:02:46]}  Qxh4 {[%clk 0:01:24]} 17. Bf3 {[%clk 0:02:43]}  Nb6 {[%clk 0:01:18]} 18. Qd3 {[%clk 0:02:41]}  d5 {[%clk 0:01:16]} 19. Be1 {[%clk 0:02:35]}  dxc4 {[%clk 0:01:02]} 20. Bxh4 {[%clk 0:02:24]}  cxd3 {[%clk 0:01:01]} 21. Bf2 {[%clk 0:02:25]}  Rad8 {[%clk 0:00:57]} 22. dxe5 {[%clk 0:01:49]}  Bxe5 {[%clk 0:00:55]} 23. Rfd1 {[%clk 0:01:50]}  a3 {[%clk 0:00:50]} 24. b5 {[%clk 0:01:42]}  cxb5 {[%clk 0:00:45]} 25. Rc5 {[%clk 0:01:42]}  Na4 {[%clk 0:00:38]} 26. Rd5 {[%clk 0:01:38]}  Nc3 {[%clk 0:00:32]} 27. R1xd3 {[%clk 0:01:33]}  Nxd5 {[%clk 0:00:31]} 28. exd5 {[%clk 0:01:34]}  b4 {[%clk 0:00:31]} 29. Be1 {[%clk 0:01:29]}  Bd6 {[%clk 0:00:30]} 30. Rb3 {[%clk 0:01:28]}  Rc8 {[%clk 0:00:28]} 31. Bxb4 {[%clk 0:01:19]}  Bxb4 {[%clk 0:00:27]} 32. Rxb4 {[%clk 0:01:20]}  Rc2 {[%clk 0:00:25]} 33. d6 {[%clk 0:01:17]}  Rxa2 {[%clk 0:00:25]} 34. d7 {[%clk 0:00:57]}  Rd8 {[%clk 0:00:23]} 35. Rxb7 {[%clk 0:00:58]}  Rd2 {[%clk 0:00:23]} 36. Ra7 {[%clk 0:00:57]}  a2 {[%clk 0:00:22]} 37. Kh2 {[%clk 0:00:56]}  R8xd7 {[%clk 0:00:22]} 38. Ra8+ {[%clk 0:00:50]}  Kg7 {[%clk 0:00:22]} 39. e4 {[%clk 0:00:22]}  R7d3 {[%clk 0:00:19]} 40. e5 {[%clk 0:00:20]}  Re3 {[%clk 0:00:19]} 41. Ra5 {[%clk 0:00:15]}  Rxf3 {[%clk 0:00:18]} 42. e6 {[%clk 0:00:13]}  fxe6 {[%clk 0:00:16]} 43. Ra7+ {[%clk 0:00:09]}  Kh6 {[%clk 0:00:16]} 44. h4 {[%clk 0:00:07]}  Rf1 {[%clk 0:00:14]} 45. Kh3 {[%clk 0:00:06]}  a1=Q {[%clk 0:00:13]} 46. g4 {[%clk 0:00:03]}  Qc3# {[%clk 0:00:12]} 0-1


[Site "https://www.chess.com"]

[Event "Titled Tuesday Blitz July 11 Late 2023"]
[White "Chemin, Justo Reinaldo"]
[Black "Jonkman, Harmen"]
[WhiteFideId "2101580"]
[BlackFideId "1002708"]
[WhiteElo "2243"]
[BlackElo "2408"]
[Result "0-1"]
[Round "5"]
[TimeControl "180+2"]
[Date "2023.07.11"]
[WhiteClock "0:00:00"]
[BlackClock "0:00:16"]
[Board "142"]

1. d4 {[%clk 0:03:00]}  c6 {[%clk 0:02:58]} 2. Nf3 {[%clk 0:03:00]}  d5 {[%clk 0:02:57]} 3. c4 {[%clk 0:02:59]}  Nf6 {[%clk 0:02:54]} 4. e3 {[%clk 0:03:00]}  a6 {[%clk 0:02:50]} 5. Nc3 {[%clk 0:02:59]}  Bg4 {[%clk 0:02:47]} 6. cxd5 {[%clk 0:02:54]}  cxd5 {[%clk 0:02:47]} 7. Qb3 {[%clk 0:02:52]}  Ra7 {[%clk 0:02:45]} 8. Ne5 {[%clk 0:02:52]}  Bd7 {[%clk 0:02:40]} 9. Nxd5 {[%clk 0:02:39]}  Be6 {[%clk 0:01:54]} 10. Qa4+ {[%clk 0:02:23]}  Nfd7 {[%clk 0:01:53]} 11. Nf4 {[%clk 0:02:14]}  Bf5 {[%clk 0:01:50]} 12. Bd2 {[%clk 0:02:04]}  f6 {[%clk 0:01:47]} 13. Nxd7 {[%clk 0:02:00]}  Nxd7 {[%clk 0:01:40]} 14. Qb3 {[%clk 0:01:59]}  e5 {[%clk 0:01:35]} 15. dxe5 {[%clk 0:01:44]}  Nc5 {[%clk 0:01:29]} 16. Qd1 {[%clk 0:01:29]}  fxe5 {[%clk 0:01:28]} 17. Nh3 {[%clk 0:01:15]}  Nd3+ {[%clk 0:01:20]} 18. Bxd3 {[%clk 0:01:14]}  Qxd3 {[%clk 0:01:18]} 19. Bc3 {[%clk 0:01:06]}  Qe4 {[%clk 0:01:12]} 20. O-O {[%clk 0:00:48]}  Be7 {[%clk 0:01:03]} 21. Rc1 {[%clk 0:00:39]}  O-O {[%clk 0:01:01]} 22. Qh5 {[%clk 0:00:31]}  h6 {[%clk 0:00:31]} 23. Bd2 {[%clk 0:00:05]}  b5 {[%clk 0:00:19]} 24. f3 {[%clk 0:00:04]}  Qd3 {[%clk 0:00:18]} 25. Bc3 {[%clk 0:00:02]}  b4 {[%clk 0:00:17]} 26. Bxe5 {[%clk 0:00:01]}  Qxe3+ {[%clk 0:00:17]} 27. Kh1 {[%clk 0:00:01]}  Qxe5 {[%clk 0:00:16]} 28. Rce1 {[%clk 0:00:00]}  Qf6 {[%clk 0:00:16]} 0-1


[Site "https://www.chess.com"]

[Event "Titled Tuesday Blitz July 11 Late 2023"]
[White "Kopacz, Grzegorz"]
[Black "Bouget, Alexandre"]
[WhiteFideId "1109880"]
[BlackFideId "681318"]
[WhiteElo "2228"]
[BlackElo "2407"]
[Result "0-1"]
[Round "5"]
[TimeControl "180+2"]
[Date "2023.07.11"]
[WhiteClock "0:01:00"]
[BlackClock "0:01:11"]
[Board "144"]

1. d4 {[%clk 0:03:00]}  g6 {[%clk 0:02:33]} 2. c4 {[%clk 0:02:59]}  Bg7 {[%clk 0:02:34]} 3. Nc3 {[%clk 0:02:59]}  c5 {[%clk 0:02:34]} 4. d5 {[%clk 0:02:57]}  Bxc3+ {[%clk 0:02:35]} 5. bxc3 {[%clk 0:02:57]}  f5 {[%clk 0:02:36]} 6. Nf3 {[%clk 0:02:48]}  Qa5 {[%clk 0:02:35]} 7. Qc2 {[%clk 0:02:44]}  d6 {[%clk 0:02:35]} 8. Bd2 {[%clk 0:02:39]}  Nd7 {[%clk 0:02:31]} 9. e4 {[%clk 0:02:33]}  Nb6 {[%clk 0:02:28]} 10. exf5 {[%clk 0:02:27]}  Bxf5 {[%clk 0:02:25]} 11. Bd3 {[%clk 0:02:28]}  Bxd3 {[%clk 0:02:17]} 12. Qxd3 {[%clk 0:02:29]}  Qa4 {[%clk 0:02:17]} 13. Rb1 {[%clk 0:02:19]}  O-O-O {[%clk 0:02:08]} 14. Ng5 {[%clk 0:02:13]}  Qxc4 {[%clk 0:01:51]} 15. Qxc4 {[%clk 0:02:11]}  Nxc4 {[%clk 0:01:52]} 16. Nf7 {[%clk 0:02:11]}  Nf6 {[%clk 0:01:52]} 17. Nxh8 {[%clk 0:02:10]}  Rxh8 {[%clk 0:01:51]} 18. Ke2 {[%clk 0:01:59]}  Nxd5 {[%clk 0:01:50]} 19. Kd3 {[%clk 0:01:57]}  Ne5+ {[%clk 0:01:40]} 20. Kc2 {[%clk 0:01:52]}  Rf8 {[%clk 0:01:37]} 21. Rhf1 {[%clk 0:01:46]}  Nc4 {[%clk 0:01:38]} 22. f3 {[%clk 0:01:36]}  Nce3+ {[%clk 0:01:29]} 23. Bxe3 {[%clk 0:01:34]}  Nxe3+ {[%clk 0:01:30]} 24. Kd3 {[%clk 0:01:35]}  Nxf1 {[%clk 0:01:30]} 25. Rxf1 {[%clk 0:01:35]}  b5 {[%clk 0:01:27]} 26. Re1 {[%clk 0:01:35]}  Kd7 {[%clk 0:01:20]} 27. h4 {[%clk 0:01:31]}  Rf4 {[%clk 0:01:18]} 28. Rh1 {[%clk 0:01:29]}  h5 {[%clk 0:01:16]} 29. Ke3 {[%clk 0:01:26]}  e5 {[%clk 0:01:16]} 30. g3 {[%clk 0:01:26]}  Ra4 {[%clk 0:01:17]} 31. Rh2 {[%clk 0:01:23]}  Ra3 {[%clk 0:01:15]} 32. g4 {[%clk 0:01:11]}  Rxc3+ {[%clk 0:01:12]} 33. Ke4 {[%clk 0:01:11]}  Ke6 {[%clk 0:01:11]} 34. gxh5 {[%clk 0:01:00]}  d5# {[%clk 0:01:11]} 0-1


[Site "https://www.chess.com"]

[Event "Titled Tuesday Blitz July 11 Late 2023"]
[White "Oliveira, Tiago Batista"]
[Black "Carrasco Miranda, Andres"]
[WhiteFideId "2108291"]
[BlackFideId "3405990"]
[WhiteElo "2164"]
[BlackElo "2397"]
[Result "0-1"]
[Round "5"]
[TimeControl "180+2"]
[Date "2023.07.11"]
[WhiteClock "0:00:00"]
[BlackClock "0:00:25"]
[Board "148"]

1. d4 {[%clk 0:03:00]}  Nf6 {[%clk 0:02:57]} 2. c4 {[%clk 0:03:00]}  g6 {[%clk 0:02:56]} 3. Nc3 {[%clk 0:03:00]}  d5 {[%clk 0:02:56]} 4. cxd5 {[%clk 0:02:59]}  Nxd5 {[%clk 0:02:57]} 5. e4 {[%clk 0:02:59]}  Nxc3 {[%clk 0:02:57]} 6. bxc3 {[%clk 0:02:59]}  Bg7 {[%clk 0:02:58]} 7. Be3 {[%clk 0:02:58]}  c5 {[%clk 0:02:56]} 8. Rc1 {[%clk 0:02:52]}  O-O {[%clk 0:02:56]} 9. Nf3 {[%clk 0:02:52]}  Bg4 {[%clk 0:02:54]} 10. Be2 {[%clk 0:02:50]}  cxd4 {[%clk 0:02:50]} 11. cxd4 {[%clk 0:02:50]}  Qa5+ {[%clk 0:02:49]} 12. Qd2 {[%clk 0:02:49]}  Qxd2+ {[%clk 0:02:48]} 13. Nxd2 {[%clk 0:02:48]}  Bxe2 {[%clk 0:02:49]} 14. Kxe2 {[%clk 0:02:48]}  Nc6 {[%clk 0:02:49]} 15. d5 {[%clk 0:02:47]}  Ne5 {[%clk 0:02:30]} 16. f4 {[%clk 0:02:32]}  Ng4 {[%clk 0:02:29]} 17. Bc5 {[%clk 0:02:32]}  Rfe8 {[%clk 0:02:21]} 18. h3 {[%clk 0:02:32]}  Nf6 {[%clk 0:02:20]} 19. Rhd1 {[%clk 0:02:19]}  e6 {[%clk 0:02:20]} 20. d6 {[%clk 0:02:16]}  e5 {[%clk 0:02:20]} 21. Kf3 {[%clk 0:01:59]}  exf4 {[%clk 0:02:14]} 22. Kxf4 {[%clk 0:01:18]}  Bh6+ {[%clk 0:02:09]} 23. Kf3 {[%clk 0:01:15]}  Bxd2 {[%clk 0:02:02]} 24. Rxd2 {[%clk 0:01:15]}  Nxe4 {[%clk 0:02:03]} 25. Rdc2 {[%clk 0:00:58]}  Nxc5 {[%clk 0:01:56]} 26. Rxc5 {[%clk 0:00:57]}  Rad8 {[%clk 0:01:53]} 27. Rc7 {[%clk 0:00:53]}  Rxd6 {[%clk 0:01:49]} 28. Rxb7 {[%clk 0:00:52]}  Ra6 {[%clk 0:01:42]} 29. Rcc7 {[%clk 0:00:48]}  Rxa2 {[%clk 0:01:36]} 30. Rxf7 {[%clk 0:00:45]}  Rf8 {[%clk 0:01:36]} 31. Rxf8+ {[%clk 0:00:39]}  Kxf8 {[%clk 0:01:37]} 32. Rxh7 {[%clk 0:00:38]}  Ra5 {[%clk 0:01:23]} 33. h4 {[%clk 0:00:20]}  Rf5+ {[%clk 0:01:22]} 34. Ke4 {[%clk 0:00:16]}  Rf7 {[%clk 0:01:22]} 35. Rh8+ {[%clk 0:00:14]}  Kg7 {[%clk 0:01:19]} 36. Ra8 {[%clk 0:00:14]}  Rb7 {[%clk 0:01:16]} 37. g4 {[%clk 0:00:13]}  Rb4+ {[%clk 0:01:11]} 38. Kf3 {[%clk 0:00:12]}  Ra4 {[%clk 0:01:08]} 39. g5 {[%clk 0:00:11]}  Kf7 {[%clk 0:01:06]} 40. Kg3 {[%clk 0:00:11]}  Ke6 {[%clk 0:01:06]} 41. Re8+ {[%clk 0:00:09]}  Kf7 {[%clk 0:01:04]} 42. Ra8 {[%clk 0:00:09]}  Ra1 {[%clk 0:01:02]} 43. Kg4 {[%clk 0:00:09]}  Ra3 {[%clk 0:00:59]} 44. h5 {[%clk 0:00:07]}  Ra4+ {[%clk 0:00:59]} 45. Kg3 {[%clk 0:00:06]}  gxh5 {[%clk 0:00:59]} 46. Rh8 {[%clk 0:00:05]}  Kg6 {[%clk 0:00:58]} 47. Rg8+ {[%clk 0:00:05]}  Kf5 {[%clk 0:00:58]} 48. g6 {[%clk 0:00:04]}  Rg4+ {[%clk 0:00:58]} 49. Kf3 {[%clk 0:00:03]}  Rxg6 {[%clk 0:00:58]} 50. Rh8 {[%clk 0:00:02]}  Kg5 {[%clk 0:00:56]} 51. Ra8 {[%clk 0:00:01]}  a6 {[%clk 0:00:55]} 52. Rb8 {[%clk 0:00:01]}  Kh4 {[%clk 0:00:54]} 53. Rb4+ {[%clk 0:00:02]}  Kh3 {[%clk 0:00:53]} 54. Rb2 {[%clk 0:00:02]}  a5 {[%clk 0:00:51]} 55. Ra2 {[%clk 0:00:02]}  Rg5 {[%clk 0:00:51]} 56. Kf4 {[%clk 0:00:01]}  Rb5 {[%clk 0:00:51]} 57. Ra3+ {[%clk 0:00:01]}  Kg2 {[%clk 0:00:47]} 58. Ra2+ {[%clk 0:00:02]}  Kf1 {[%clk 0:00:47]} 59. Kf3 {[%clk 0:00:02]}  Rf5+ {[%clk 0:00:46]} 60. Ke4 {[%clk 0:00:03]}  Rg5 {[%clk 0:00:46]} 61. Kf4 {[%clk 0:00:03]}  Rg4+ {[%clk 0:00:46]} 62. Kf3 {[%clk 0:00:03]}  Kg1 {[%clk 0:00:37]} 63. Rxa5 {[%clk 0:00:04]}  Rh4 {[%clk 0:00:35]} 64. Rg5+ {[%clk 0:00:04]}  Kh2 {[%clk 0:00:33]} 65. Rg6 {[%clk 0:00:03]}  Ra4 {[%clk 0:00:31]} 66. Rg8 {[%clk 0:00:03]}  h4 {[%clk 0:00:31]} 67. Kf2 {[%clk 0:00:03]}  h3 {[%clk 0:00:31]} 68. Kf1 {[%clk 0:00:04]}  Ra1+ {[%clk 0:00:31]} 69. Kf2 {[%clk 0:00:04]}  Ra2+ {[%clk 0:00:31]} 70. Kf1 {[%clk 0:00:04]}  Rg2 {[%clk 0:00:32]} 71. Rh8 {[%clk 0:00:03]}  Kg3 {[%clk 0:00:32]} 72. Rg8+ {[%clk 0:00:03]}  Kf3 {[%clk 0:00:32]} 73. Rf8+ {[%clk 0:00:04]}  Ke4 {[%clk 0:00:32]} 74. Re8+ {[%clk 0:00:04]}  Kf5 {[%clk 0:00:32]} 75. Rh8 {[%clk 0:00:04]}  Kg4 {[%clk 0:00:32]} 76. Rg8+ {[%clk 0:00:04]}  Kf3 {[%clk 0:00:32]} 77. Rf8+ {[%clk 0:00:05]}  Kg3 {[%clk 0:00:33]} 78. Rg8+ {[%clk 0:00:05]}  Kh2 {[%clk 0:00:33]} 79. Rh8 {[%clk 0:00:05]}  Ra2 {[%clk 0:00:33]} 80. Rg8 {[%clk 0:00:04]}  Kh1 {[%clk 0:00:31]} 81. Rg7 {[%clk 0:00:03]}  Ra1+ {[%clk 0:00:30]} 82. Kf2 {[%clk 0:00:04]}  h2 {[%clk 0:00:30]} 83. Rg8 {[%clk 0:00:03]}  Rg1 {[%clk 0:00:30]} 84. Rh8 {[%clk 0:00:03]}  Rg7 {[%clk 0:00:31]} 85. Rh6 {[%clk 0:00:03]}  Rf7+ {[%clk 0:00:31]} 86. Ke1 {[%clk 0:00:02]}  Kg2 {[%clk 0:00:29]} 87. Rg6+ {[%clk 0:00:03]}  Kf3 {[%clk 0:00:30]} 88. Rh6 {[%clk 0:00:00]}  Ra7 {[%clk 0:00:25]} 0-1


[Site "https://www.chess.com"]

[Event "Titled Tuesday Blitz July 11 Late 2023"]
[White "Prieto Aranguren, Alain"]
[Black "Khouri, Ahmed Abbas"]
[WhiteFideId "2268906"]
[BlackFideId "9301518"]
[WhiteElo "2393"]
[BlackElo "2155"]
[Result "0-1"]
[Round "5"]
[TimeControl "180+2"]
[Date "2023.07.11"]
[WhiteClock "0:00:43"]
[BlackClock "0:00:37"]
[Board "150"]

1. e4 {[%clk 0:03:00]}  d5 {[%clk 0:02:59]} 2. exd5 {[%clk 0:03:01]}  Qxd5 {[%clk 0:03:00]} 3. Nc3 {[%clk 0:03:01]}  Qd6 {[%clk 0:03:01]} 4. Nf3 {[%clk 0:03:01]}  Nf6 {[%clk 0:03:01]} 5. Bc4 {[%clk 0:02:59]}  Bg4 {[%clk 0:03:01]} 6. h3 {[%clk 0:02:59]}  Bh5 {[%clk 0:03:01]} 7. d3 {[%clk 0:02:58]}  Nbd7 {[%clk 0:03:01]} 8. Be3 {[%clk 0:02:57]}  c6 {[%clk 0:03:02]} 9. Qd2 {[%clk 0:02:54]}  e6 {[%clk 0:03:02]} 10. O-O-O {[%clk 0:02:53]}  b5 {[%clk 0:02:57]} 11. Bb3 {[%clk 0:02:52]}  a5 {[%clk 0:02:57]} 12. Bf4 {[%clk 0:02:37]}  Qc5 {[%clk 0:02:48]} 13. Ne4 {[%clk 0:02:32]}  Qb6 {[%clk 0:02:45]} 14. a3 {[%clk 0:02:12]}  a4 {[%clk 0:02:36]} 15. Ba2 {[%clk 0:02:10]}  b4 {[%clk 0:02:37]} 16. Nd6+ {[%clk 0:02:07]}  Bxd6 {[%clk 0:02:35]} 17. Bxd6 {[%clk 0:02:08]}  b3 {[%clk 0:02:33]} 18. cxb3 {[%clk 0:02:01]}  axb3 {[%clk 0:02:34]} 19. Bb1 {[%clk 0:02:01]}  c5 {[%clk 0:02:15]} 20. Bf4 {[%clk 0:01:56]}  O-O {[%clk 0:02:08]} 21. g4 {[%clk 0:01:54]}  Bg6 {[%clk 0:02:08]} 22. g5 {[%clk 0:01:51]}  Nd5 {[%clk 0:02:08]} 23. Nh4 {[%clk 0:01:46]}  Bh5 {[%clk 0:01:46]} 24. Rdg1 {[%clk 0:01:39]}  Rfc8 {[%clk 0:01:44]} 25. Be3 {[%clk 0:01:24]}  Qb7 {[%clk 0:01:15]} 26. Qe2 {[%clk 0:01:07]}  Bxe2 {[%clk 0:01:14]} 27. Re1 {[%clk 0:01:03]}  c4 {[%clk 0:01:11]} 28. Kd2 {[%clk 0:00:59]}  cxd3 {[%clk 0:01:10]} 29. Bxd3 {[%clk 0:01:00]}  Bxd3 {[%clk 0:01:07]} 30. Kxd3 {[%clk 0:01:00]}  Rc2 {[%clk 0:01:05]} 31. Bd4 {[%clk 0:00:57]}  Nf4+ {[%clk 0:01:02]} 32. Ke3 {[%clk 0:00:55]}  Ng2+ {[%clk 0:01:02]} 33. Nxg2 {[%clk 0:00:54]}  Qxg2 {[%clk 0:01:01]} 34. Rhg1 {[%clk 0:00:55]}  Qxh3+ {[%clk 0:01:00]} 35. Rg3 {[%clk 0:00:54]}  Qf5 {[%clk 0:00:59]} 36. Bc3 {[%clk 0:00:54]}  e5 {[%clk 0:00:53]} 37. Rf3 {[%clk 0:00:49]}  Qxg5+ {[%clk 0:00:52]} 38. Kd3 {[%clk 0:00:49]}  Nc5+ {[%clk 0:00:45]} 39. Kc4 {[%clk 0:00:49]}  Qg4+ {[%clk 0:00:44]} 40. Kxc5 {[%clk 0:00:48]}  Qxf3 {[%clk 0:00:44]} 41. Rg1 {[%clk 0:00:48]}  f6 {[%clk 0:00:41]} 42. Re1 {[%clk 0:00:45]}  Rxc3+ {[%clk 0:00:41]} 43. Kb4 {[%clk 0:00:44]}  Rb8+ {[%clk 0:00:36]} 44. Ka4 {[%clk 0:00:43]}  Qa8# {[%clk 0:00:37]} 0-1


[Site "https://www.chess.com"]

[Event "Titled Tuesday Blitz July 11 Late 2023"]
[White "Campos, Maria Jose"]
[Black "cycygogne"]
[WhiteFideId "146803"]
[WhiteElo "2390"]
[BlackElo "2123"]
[Result "1-0"]
[Round "5"]
[TimeControl "180+2"]
[Date "2023.07.11"]
[WhiteClock "0:00:10"]
[BlackClock "0:00:21"]
[Board "152"]

1. c4 {[%clk 0:03:00]}  c5 {[%clk 0:02:58]} 2. g3 {[%clk 0:03:01]}  g6 {[%clk 0:02:59]} 3. Bg2 {[%clk 0:03:01]}  Bg7 {[%clk 0:02:59]} 4. Nc3 {[%clk 0:03:02]}  Nc6 {[%clk 0:02:57]} 5. d3 {[%clk 0:03:00]}  e6 {[%clk 0:02:57]} 6. h4 {[%clk 0:02:59]}  Nge7 {[%clk 0:02:54]} 7. h5 {[%clk 0:02:59]}  d5 {[%clk 0:02:41]} 8. h6 {[%clk 0:02:58]}  Bf6 {[%clk 0:02:36]} 9. cxd5 {[%clk 0:02:57]}  exd5 {[%clk 0:02:36]} 10. Nf3 {[%clk 0:02:48]}  Bg4 {[%clk 0:02:29]} 11. Nh2 {[%clk 0:02:43]}  Be6 {[%clk 0:02:23]} 12. e3 {[%clk 0:02:39]}  Qd7 {[%clk 0:02:17]} 13. g4 {[%clk 0:02:25]}  O-O-O {[%clk 0:02:10]} 14. Kf1 {[%clk 0:02:18]}  Rhe8 {[%clk 0:02:00]} 15. f4 {[%clk 0:02:14]}  Kb8 {[%clk 0:01:49]} 16. g5 {[%clk 0:02:13]}  Bh8 {[%clk 0:01:48]} 17. Qf3 {[%clk 0:02:12]}  Nf5 {[%clk 0:01:41]} 18. Na4 {[%clk 0:01:59]}  Qd6 {[%clk 0:01:28]} 19. Ng4 {[%clk 0:01:55]}  Nb4 {[%clk 0:01:19]} 20. Ke2 {[%clk 0:01:40]}  Qc6 {[%clk 0:01:17]} 21. Nc3 {[%clk 0:01:32]}  Qa6 {[%clk 0:01:07]} 22. Rd1 {[%clk 0:01:33]}  Nc6 {[%clk 0:01:03]} 23. Kf2 {[%clk 0:01:16]}  Nh4 {[%clk 0:01:03]} 24. Qg3 {[%clk 0:01:13]}  Nxg2 {[%clk 0:01:03]} 25. Kxg2 {[%clk 0:01:14]}  d4 {[%clk 0:00:59]} 26. Ne4 {[%clk 0:01:09]}  dxe3 {[%clk 0:00:58]} 27. Nxc5 {[%clk 0:01:04]}  Qb6 {[%clk 0:00:55]} 28. Bxe3 {[%clk 0:01:02]}  Qxb2+ {[%clk 0:00:55]} 29. Nf2 {[%clk 0:00:53]}  Bd5+ {[%clk 0:00:53]} 30. Kh2 {[%clk 0:00:53]}  Rxe3 {[%clk 0:00:45]} 31. Qxe3 {[%clk 0:00:41]}  Bd4 {[%clk 0:00:45]} 32. Rab1 {[%clk 0:00:27]}  Bxe3 {[%clk 0:00:43]} 33. Na6+ {[%clk 0:00:22]}  Kc8 {[%clk 0:00:36]} 34. Rxb2 {[%clk 0:00:21]}  bxa6 {[%clk 0:00:37]} 35. Nh3 {[%clk 0:00:21]}  Bd4 {[%clk 0:00:34]} 36. Rc2 {[%clk 0:00:21]}  Kd7 {[%clk 0:00:34]} 37. Rb1 {[%clk 0:00:19]}  Rb8 {[%clk 0:00:31]} 38. Re1 {[%clk 0:00:19]}  Rb2 {[%clk 0:00:29]} 39. Rxb2 {[%clk 0:00:18]}  Bxb2 {[%clk 0:00:30]} 40. Rb1 {[%clk 0:00:18]}  Bd4 {[%clk 0:00:30]} 41. Rb7+ {[%clk 0:00:18]}  Kd6 {[%clk 0:00:29]} 42. Kg3 {[%clk 0:00:13]}  Bb6 {[%clk 0:00:29]} 43. a4 {[%clk 0:00:12]}  Nd8 {[%clk 0:00:29]} 44. Rb8 {[%clk 0:00:10]}  Nc6 {[%clk 0:00:29]} 45. Rh8 {[%clk 0:00:10]}  Bb3 {[%clk 0:00:26]} 46. Rxh7 {[%clk 0:00:09]}  Bxa4 {[%clk 0:00:26]} 47. Rxf7 {[%clk 0:00:09]}  Bb3 {[%clk 0:00:26]} 48. h7 {[%clk 0:00:08]}  Bd4 {[%clk 0:00:25]} 49. Rf6+ {[%clk 0:00:09]}  Kd7 {[%clk 0:00:24]} 50. h8=Q {[%clk 0:00:09]}  Bxf6 {[%clk 0:00:24]} 51. Qxf6 {[%clk 0:00:09]}  a5 {[%clk 0:00:23]} 52. Qxg6 {[%clk 0:00:09]}  a4 {[%clk 0:00:24]} 53. Qf5+ {[%clk 0:00:09]}  Kd6 {[%clk 0:00:24]} 54. g6 {[%clk 0:00:09]}  a3 {[%clk 0:00:24]} 55. Qf6+ {[%clk 0:00:09]}  Kc5 {[%clk 0:00:24]} 56. Ng5 {[%clk 0:00:09]}  a2 {[%clk 0:00:24]} 57. Ne4+ {[%clk 0:00:10]}  Kb4 {[%clk 0:00:21]} 58. g7 {[%clk 0:00:10]} 1-0


[Site "https://www.chess.com"]

[Event "Titled Tuesday Blitz July 11 Late 2023"]
[White "Djordjevic, Dejan N"]
[Black "EsmeraldasAnderson03"]
[WhiteFideId "913316"]
[WhiteElo "2085"]
[BlackElo "2386"]
[Result "1-0"]
[Round "5"]
[TimeControl "180+2"]
[Date "2023.07.11"]
[WhiteClock "0:00:19"]
[BlackClock "0:00:00"]
[Board "154"]

1. e4 {[%clk 0:02:51]}  c5 {[%clk 0:02:42]} 2. Nc3 {[%clk 0:02:50]}  e6 {[%clk 0:02:40]} 3. g3 {[%clk 0:02:50]}  d5 {[%clk 0:02:40]} 4. exd5 {[%clk 0:02:50]}  exd5 {[%clk 0:02:41]} 5. d4 {[%clk 0:02:50]}  cxd4 {[%clk 0:02:40]} 6. Qxd4 {[%clk 0:02:49]}  Be6 {[%clk 0:02:41]} 7. Nf3 {[%clk 0:02:41]}  Nc6 {[%clk 0:02:41]} 8. Qd1 {[%clk 0:02:33]}  Bb4 {[%clk 0:02:38]} 9. a3 {[%clk 0:02:32]}  Bxc3+ {[%clk 0:02:38]} 10. bxc3 {[%clk 0:02:32]}  Nge7 {[%clk 0:02:34]} 11. Bg2 {[%clk 0:02:32]}  O-O {[%clk 0:02:33]} 12. O-O {[%clk 0:02:32]}  Rc8 {[%clk 0:02:31]} 13. Nd4 {[%clk 0:02:23]}  Nxd4 {[%clk 0:02:27]} 14. cxd4 {[%clk 0:02:23]}  Qc7 {[%clk 0:02:26]} 15. Ra2 {[%clk 0:02:18]}  Nf5 {[%clk 0:02:20]} 16. Bd2 {[%clk 0:02:06]}  Nxd4 {[%clk 0:01:56]} 17. Bb4 {[%clk 0:02:05]}  Qc4 {[%clk 0:01:55]} 18. Bxf8 {[%clk 0:02:02]}  Ne2+ {[%clk 0:01:56]} 19. Kh1 {[%clk 0:02:00]}  Nc3 {[%clk 0:01:56]} 20. Qe1 {[%clk 0:01:31]}  Nxa2 {[%clk 0:01:40]} 21. Bd6 {[%clk 0:01:25]}  Qxc2 {[%clk 0:01:36]} 22. Be5 {[%clk 0:01:17]}  Nc3 {[%clk 0:01:27]} 23. Qe3 {[%clk 0:01:12]}  Nb5 {[%clk 0:00:43]} 24. a4 {[%clk 0:00:56]}  Nc3 {[%clk 0:00:10]} 25. Rc1 {[%clk 0:00:51]}  Qb2 {[%clk 0:00:08]} 26. Bxc3 {[%clk 0:00:46]}  Qa3 {[%clk 0:00:06]} 27. Bd2 {[%clk 0:00:33]}  Rxc1+ {[%clk 0:00:06]} 28. Bxc1 {[%clk 0:00:33]}  Qxa4 {[%clk 0:00:07]} 29. h3 {[%clk 0:00:30]}  b5 {[%clk 0:00:06]} 30. Kh2 {[%clk 0:00:30]}  a5 {[%clk 0:00:06]} 31. Qb6 {[%clk 0:00:26]}  h6 {[%clk 0:00:05]} 32. Be3 {[%clk 0:00:24]}  b4 {[%clk 0:00:02]} 33. Qd8+ {[%clk 0:00:22]}  Kh7 {[%clk 0:00:02]} 34. Bxd5 {[%clk 0:00:22]}  Bxd5 {[%clk 0:00:02]} 35. Qxd5 {[%clk 0:00:21]}  Qc2 {[%clk 0:00:03]} 36. Qxf7 {[%clk 0:00:20]}  b3 {[%clk 0:00:00]} 37. Bd4 {[%clk 0:00:19]} 1-0


[Site "https://www.chess.com"]